fUST/lending_fUST_20250723
["ID","MTS","AMOUNT","RATE_DAILY","PERIOD"]
[374375414,1753282253739,-460.0,0.00024495,2]
[374375416,1753282253748,-600.0,0.00024496,2]
[374375418,1753282253758,-500.94082614,0.00024511,9]
[374375419,1753282253769,-600.0,0.00024533,2]
[374375423,1753282253789,-503.10381467,0.00024557,9]
[374375425,1753282253798,-500.0,0.0002457,2]
[374375427,1753282253810,-349.0,0.00024592,2]
[374375429,1753282253820,-165.61993914,0.00024602,31]
[374375431,1753282253830,-800.0,0.00024608,2]
[374375433,1753282253839,-251.6373,0.00024615,7]
[374375435,1753282253849,-222.878751,0.00024615,7]
[374375436,1753282253858,-349.0,0.00024625,2]
[374375438,1753282253867,-153.0,0.0002463,2]
[374375441,1753282253877,-153.0,0.0002463,2]
[374375443,1753282253887,-153.0,0.0002463,2]
[374375445,1753282253896,-500.0,0.00024651,2]
[374375447,1753282253905,-692.0,0.00024657,2]
[374375448,1753282253915,-569.02,0.00024657,2]
[374375450,1753282253926,-1003.87,0.00024657,2]
[374375452,1753282253935,-1246.16,0.00024657,2]
[374375454,1753282253945,-261.12,0.00024657,2]
[374375456,1753282253954,-3147.97,0.00024657,2]
[374375458,1753282253964,-631.17,0.00024657,2]
[374375460,1753282253973,-187.7130506,0.00024658,2]
[374375462,1753282253982,-151.0,0.00024658,2]
[374375465,1753282253992,-151.0,0.00024658,2]
[374375466,1753282254002,-151.0,0.00024658,2]
[374375469,1753282254012,-500.0,0.00024658,2]
[374375471,1753282254021,-151.0,0.00024658,2]
[374375473,1753282254031,-151.0,0.00024658,2]
[374375474,1753282254040,-275.38754775,0.00024658,2]
[374375477,1753282254050,-151.0,0.00024658,2]
[374375478,1753282254060,-151.0,0.00024658,2]
[374375480,1753282254069,-151.0,0.00024658,2]
[374375483,1753282254079,-655.0,0.00024658,2]
[374375485,1753282254089,-718.0,0.00024658,2]
[374375487,1753282254098,-151.0,0.00024658,2]
[374375488,1753282254107,-151.0,0.00024658,2]
[374375491,1753282254117,-151.0,0.00024658,2]
[374375492,1753282254127,-151.0,0.00024658,2]
[374375495,1753282254137,-151.0,0.00024658,2]
[374375497,1753282254146,-500.0,0.00024658,2]
[374375499,1753282254155,-264.71389374,0.00024658,2]
[374375501,1753282254166,-257.47516588,0.00024658,2]
[374375503,1753282254175,-151.0,0.00024658,2]
[374375505,1753282254184,-1180.0,0.00024658,2]
[374375507,1753282254194,-151.0,0.00024658,2]
[374375509,1753282254204,-500.0,0.00024658,2]
[374375511,1753282254214,-151.58359639,0.00024658,2]
[374375513,1753282254224,-151.0,0.00024658,2]
[374375515,1753282254234,-500.0,0.00024658,2]
[374375517,1753282254243,-151.0,0.00024658,2]
[374375519,1753282254253,-500.0,0.00024658,2]
[374375521,1753282254263,-198.69371496,0.00024658,2]
[374375523,1753282254273,-151.0,0.00024658,2]
[374375525,1753282254283,-151.0,0.00024658,2]
[374375527,1753282254292,-151.0,0.00024658,2]
[374375529,1753282254302,-500.0,0.00024658,2]
[374375531,1753282254312,-151.0,0.00024658,2]
[374375533,1753282254321,-48711.31,0.000247,2]
[374375535,1753282254331,-800.0,0.000247,2]
[374375537,1753282254340,-800.0,0.00024707,2]
[374375539,1753282254349,-500.0,0.00024708,2]
[374375541,1753282254358,-800.0,0.00024711,2]
[374375543,1753282254369,-600.0,0.00024719,2]
[374375545,1753282254377,-808.611,0.00024721,2]
[374375547,1753282254386,-2200.0,0.00024721,2]
[374375549,1753282254395,-800.0,0.00024743,2]
[374375551,1753282254407,-600.0,0.00024768,2]
[374375553,1753282254418,-460.0,0.00024769,2]
[374375555,1753282254427,-460.0,0.00024769,2]
[374375557,1753282254436,-460.0,0.00024769,2]
[374375559,1753282254446,-4062.89,0.00024769,2]
[374375561,1753282254455,-460.0,0.00024769,2]
[374375563,1753282254464,-164.78,0.00024769,2]
[374375565,1753282254474,-460.0,0.00024769,2]
[374375567,1753282254484,-460.0,0.00024769,2]
[374375569,1753282254493,-541.67,0.00024769,2]
[374375571,1753282254503,-460.0,0.00024769,2]
[374375573,1753282254512,-460.0,0.00024769,2]
[374375575,1753282254522,-467.82,0.00024769,2]
[374375577,1753282254531,-460.0,0.00024769,2]
[374375579,1753282254541,-224.10116715,0.00024769,2]
[374375581,1753282254550,-588.68,0.00024769,2]
[374375583,1753282254560,-460.0,0.00024769,2]
[374375585,1753282254570,-1232.45,0.00024769,2]
[374375587,1753282254579,-460.0,0.00024769,2]
[374375589,1753282254588,-460.0,0.00024769,2]
[374375591,1753282254598,-460.0,0.00024769,2]
[374375593,1753282254608,-1077.91,0.00024769,2]
[374375595,1753282254617,-460.0,0.00024769,2]
[374375597,1753282254627,-460.0,0.00024769,2]
[374375599,1753282254637,-460.0,0.00024769,2]
[374375601,1753282254646,-460.0,0.00024769,2]
[374375603,1753282254656,-928.4,0.00024775,7]
[374375605,1753282254666,-800.0,0.00024782,2]
[374375607,1753282254675,-402.0,0.0002479,12]
[374375609,1753282254685,-800.0,0.00024795,2]
[374375611,1753282254695,-456.90833106,0.00024798,2]
[374375613,1753282254704,-432.053455,0.000248,10]
[374375615,1753282254714,-189674.73408036,0.000248,2]
[374378736,1753282341485,-3788.0,0.00019078,2]
[374378737,1753282342854,1000.0,0.00026,120]
[374378740,1753282464525,168.79147186,0.000222,69]
[374378811,1753283086377,404.413517,0.00013699,2]
[374378849,1753283136096,-339.32318683,0.00017893,6]
[374378850,1753283136118,-7.01637524,0.00018074,2]
[374378852,1753283225086,-172.72259456,0.00018074,2]
[374378853,1753283252059,-6.3830962,0.00018074,2]
[374378854,1753283252080,-145.85156535,0.00018218,2]
[374378857,1753283348082,-4324.10932585,0.00018218,2]
[374378873,1753283432676,-150.0,0.00018697,2]
[374378874,1753283432686,-581.82974463,0.00018882,2]
[374378875,1753283432697,-1248.55120241,0.00018882,2]
[374378876,1753283432707,-1290.34934215,0.00018982,2]
[374378877,1753283432716,-300.0,0.00019067,2]
[374378878,1753283432726,-636.31,0.00019068,3]
[374378879,1753283432734,-318.15,0.00019068,3]
[374378880,1753283432742,-109.85913283,0.00019068,3]
[374378881,1753283432754,-49.22086717,0.00019068,3]
[374378882,1753283432763,-477.26,0.00019068,3]
[374378883,1753283432772,-78.96913283,0.00019068,3]
[374378884,1753283432792,-309.95086717,0.00019068,3]
[374378885,1753283432802,-194.46,0.00019068,3]
[374378886,1753283432811,-240.17265865,0.00019068,3]
[374378887,1753283432823,-343.22734135,0.00019068,3]
[374378888,1753283432832,-500.0,0.00019077,2]
[374378889,1753283432841,-500.0,0.00019077,2]
[374378890,1753283432850,-246.904441,0.00019077,2]
[374379399,1753283439176,-253.095559,0.00019077,2]
[374379401,1753283439186,-226.93567365,0.00019077,2]
[374379403,1753283439196,-172.96642639,0.00019077,2]
[374379405,1753283439205,-500.0,0.00019077,2]
[374379407,1753283439214,-586.14637998,0.00019077,2]
[374379409,1753283439223,-2277.63750755,0.00019078,2]
[374379416,1753283439272,-464.38885738,0.00019078,2]
[374379418,1753283439281,-681.31785308,0.00019078,2]
[374379420,1753283439291,-366212.0,0.00019078,2]
[374379422,1753283439300,-460.0,0.00019178,2]
[374379424,1753283439310,-461.35031878,0.00019178,2]
[374379426,1753283439319,-460.0,0.00019178,2]
[374379428,1753283439329,-460.0,0.00019178,2]
[374379430,1753283439338,-460.0,0.00019178,2]
[374379432,1753283439347,-460.0,0.00019178,2]
[374379434,1753283439356,-460.0,0.00019178,2]
[374379436,1753283439366,-460.0,0.00019178,2]
[374379437,1753283439375,-460.0,0.00019178,2]
[374379439,1753283439384,-460.0,0.00019178,2]
[374379441,1753283439394,-460.0,0.00019178,2]
[374379443,1753283439408,-460.0,0.00019178,2]
[374379445,1753283439417,-460.0,0.00019178,2]
[374379447,1753283439427,-460.0,0.00019178,2]
[374379449,1753283439436,-460.0,0.00019178,2]
[374379451,1753283439446,-559.34486732,0.00019178,2]
[374379453,1753283439456,-460.0,0.00019178,2]
[374379455,1753283439465,-468.04502299,0.00019178,2]
[374379457,1753283439474,-460.0,0.00019178,2]
[374379459,1753283439483,-460.0,0.00019178,2]
[374379461,1753283439492,-460.0,0.00019178,2]
[374379463,1753283439502,-477.59422645,0.00019178,2]
[374379465,1753283439511,-460.0,0.00019178,2]
[374379467,1753283439521,-460.0,0.00019178,2]
[374379469,1753283439530,-460.0,0.00019178,2]
[374379471,1753283439540,-460.0,0.00019178,2]
[374379473,1753283439549,-460.0,0.00019178,2]
[374379476,1753283439558,-460.0,0.00019178,2]
[374379480,1753283439567,-460.0,0.00019178,2]
[374379482,1753283439577,-469.03337623,0.00019178,2]
[374379483,1753283439586,-174.17545109,0.00019178,2]
[374379486,1753283439596,-460.0,0.00019178,2]
[374379488,1753283439605,-460.0,0.00019178,2]
[374379490,1753283439614,-460.0,0.00019178,2]
[374379492,1753283439625,-460.0,0.00019178,2]
[374379494,1753283439634,-467.67,0.00019178,2]
[374379496,1753283439643,-460.0,0.00019178,2]
[374379498,1753283439656,-8042.37,0.00019178,2]
[374379500,1753283439665,-460.0,0.00019178,2]
[374379501,1753283439674,-460.0,0.00019178,2]
[374379504,1753283439684,-460.0,0.00019178,2]
[374379506,1753283439694,-460.0,0.00019178,2]
[374379508,1753283439703,-460.0,0.00019178,2]
[374379509,1753283439712,-460.0,0.00019178,2]
[374379511,1753283439721,-460.0,0.00019178,2]
[374379514,1753283439731,-460.0,0.00019178,2]
[374379516,1753283439742,-460.0,0.00019178,2]
[374379518,1753283439751,-460.0,0.00019178,2]
[374379520,1753283439760,-460.0,0.00019178,2]
[374379522,1753283439769,-1762.47,0.00019178,2]
[374379524,1753283439779,-460.0,0.00019178,2]
[374379526,1753283439788,-460.0,0.00019178,2]
[374379528,1753283439798,-460.0,0.00019178,2]
[374379530,1753283439807,-460.0,0.00019178,2]
[374379532,1753283439816,-460.0,0.00019178,2]
[374379534,1753283439825,-460.0,0.00019178,2]
[374379536,1753283439836,-460.0,0.00019178,2]
[374379538,1753283439845,-460.0,0.00019178,2]
[374379540,1753283439855,-460.0,0.00019178,2]
[374379542,1753283439865,-2363.56,0.00019178,2]
[374379544,1753283439874,-326.96769428,0.00019178,2]
[374379546,1753283439884,-2072.7,0.00019178,2]
[374379548,1753283439894,-460.0,0.00019178,2]
[374379550,1753283439906,-460.0,0.00019178,2]
[374379552,1753283439915,-460.0,0.00019178,2]
[374379554,1753283439930,-460.0,0.00019178,2]
[374379556,1753283439945,-460.0,0.00019178,2]
[374379558,1753283439954,-460.0,0.00019178,2]
[374379560,1753283439964,-460.0,0.00019178,2]
[374379562,1753283439973,-1586.54,0.00019178,2]
[374379564,1753283439982,-1711.56,0.00019178,2]
[374379566,1753283439992,-460.0,0.00019178,2]
[374379568,1753283440001,-460.0,0.00019178,2]
[374379570,1753283440010,-460.0,0.00019178,2]
[374379572,1753283440020,-460.0,0.00019178,2]
[374379574,1753283440029,-460.0,0.00019178,2]
[374379576,1753283440039,-460.0,0.00019178,2]
[374379578,1753283440048,-460.0,0.00019178,2]
[374379580,1753283440057,-2071.11,0.00019178,2]
[374379582,1753283440067,-460.0,0.00019178,2]
[374379585,1753283440076,-460.0,0.00019178,2]
[374379588,1753283440085,-460.0,0.00019178,2]
[374379590,1753283440099,-460.0,0.00019178,2]
[374379593,1753283440108,-460.0,0.00019178,2]
[374379595,1753283440117,-564.07,0.00019178,2]
[374379597,1753283440126,-460.0,0.00019178,2]
[374379599,1753283440137,-460.0,0.00019178,2]
[374379602,1753283440146,-460.0,0.00019178,2]
[374379605,1753283440157,-460.0,0.00019178,2]
[374379607,1753283440168,-460.0,0.00019178,2]
[374379610,1753283440178,-891.31,0.00019178,2]
[374379613,1753283440187,-460.0,0.00019178,2]
[374379615,1753283440197,-200.431247,0.00019178,2]
[374379617,1753283440206,-666.0,0.00019178,2]
[374379619,1753283440216,-20481.36237182,0.00019329,2]
[374379621,1753283440226,-460.0,0.00019452,2]
[374379624,1753283440242,-460.0,0.00019452,2]
[374379625,1753283440262,-460.0,0.00019452,2]
[374379627,1753283440270,-460.0,0.00019452,2]
[374379629,1753283440279,-460.0,0.00019452,2]
[374379631,1753283440289,-460.0,0.00019452,2]
[374379634,1753283440298,-460.0,0.00019452,2]
[374379636,1753283440308,-460.0,0.00019452,2]
[374379638,1753283440317,-476.95398629,0.00019452,2]
[374379640,1753283440326,-460.0,0.00019452,2]
[374379642,1753283440337,-460.0,0.00019452,2]
[374379645,1753283440346,-460.0,0.00019452,2]
[374379647,1753283440355,-460.0,0.00019452,2]
[374379650,1753283440364,-460.0,0.00019452,2]
[374379653,1753283440373,-460.0,0.00019452,2]
[374379656,1753283440383,-467.67,0.00019452,2]
[374379659,1753283440394,-8042.37,0.00019452,2]
[374379662,1753283440405,-460.0,0.00019452,2]
[374379664,1753283440415,-460.0,0.00019452,2]
[374379666,1753283440424,-460.0,0.00019452,2]
[374379668,1753283440434,-460.0,0.00019452,2]
[374379670,1753283440444,-460.0,0.00019452,2]
[374379672,1753283440453,-460.0,0.00019452,2]
[374379674,1753283440463,-460.0,0.00019452,2]
[374379675,1753283440472,-460.0,0.00019452,2]
[374379678,1753283440482,-460.0,0.00019452,2]
[374379680,1753283440492,-460.0,0.00019452,2]
[374379682,1753283440501,-1762.47,0.00019452,2]
[374379684,1753283440511,-460.0,0.00019452,2]
[374379686,1753283440521,-460.0,0.00019452,2]
[374379688,1753283440530,-460.0,0.00019452,2]
[374379690,1753283440538,-460.0,0.00019452,2]
[374379692,1753283440549,-460.0,0.00019452,2]
[374379694,1753283440558,-460.0,0.00019452,2]
[374379696,1753283440568,-314.64906921,0.00019452,2]
[374379698,1753283440577,-460.0,0.00019452,2]
[374379700,1753283440587,-460.0,0.00019452,2]
[374379702,1753283440596,-2363.56,0.00019452,2]
[374379704,1753283440605,-2072.7,0.00019452,2]
[374379706,1753283440615,-460.0,0.00019452,2]
[374379708,1753283440624,-460.0,0.00019452,2]
[374379710,1753283440633,-460.0,0.00019452,2]
[374379712,1753283440643,-460.0,0.00019452,2]
[374379714,1753283440656,-460.0,0.00019452,2]
[374379716,1753283440665,-460.0,0.00019452,2]
[374379718,1753283440674,-460.0,0.00019452,2]
[374379720,1753283440683,-1586.54,0.00019452,2]
[374379722,1753283440693,-1711.56,0.00019452,2]
[374379724,1753283440703,-460.0,0.00019452,2]
[374379726,1753283440712,-460.0,0.00019452,2]
[374379728,1753283440722,-460.0,0.00019452,2]
[374379730,1753283440731,-460.0,0.00019452,2]
[374379732,1753283440740,-460.0,0.00019452,2]
[374379735,1753283440750,-2071.11,0.00019452,2]
[374379737,1753283440759,-460.0,0.00019452,2]
[374379739,1753283440769,-367.00235644,0.00019452,2]
[374379741,1753283440779,-460.0,0.00019452,2]
[374379743,1753283440788,-460.0,0.00019452,2]
[374379745,1753283440797,-564.07,0.00019452,2]
[374379747,1753283440807,-460.0,0.00019452,2]
[374379749,1753283440816,-460.0,0.00019452,2]
[374379751,1753283440825,-460.0,0.00019452,2]
[374379753,1753283440835,-460.0,0.00019452,2]
[374379755,1753283440844,-891.31,0.00019452,2]
[374379757,1753283440853,-460.0,0.00019452,2]
[374379759,1753283440864,-150.0,0.00019587,2]
[374379761,1753283440874,-500.0,0.0001962,2]
[374379763,1753283440883,-500.0,0.00019675,2]
[374379765,1753283440893,-500.0,0.00019675,2]
[374379767,1753283440905,-460.0,0.00019726,2]
[374379769,1753283440915,-316.3,0.00019726,2]
[374379771,1753283440924,-460.0,0.00019726,2]
[374379773,1753283440934,-460.0,0.00019726,2]
[374379775,1753283440944,-460.0,0.00019726,2]
[374379777,1753283440953,-460.0,0.00019726,2]
[374379779,1753283440962,-460.0,0.00019726,2]
[374379781,1753283440972,-460.0,0.00019726,2]
[374379783,1753283440982,-460.0,0.00019726,2]
[374379785,1753283440991,-460.0,0.00019726,2]
[374379787,1753283441001,-460.0,0.00019726,2]
[374379789,1753283441011,-467.67,0.00019726,2]
[374379791,1753283441020,-8042.37,0.00019726,2]
[374379793,1753283441029,-460.0,0.00019726,2]
[374379795,1753283441039,-460.0,0.00019726,2]
[374379797,1753283441048,-460.0,0.00019726,2]
[374379799,1753283441057,-460.0,0.00019726,2]
[374379801,1753283441067,-460.0,0.00019726,2]
[374379804,1753283441076,-460.0,0.00019726,2]
[374379806,1753283441086,-460.0,0.00019726,2]
[374379808,1753283441100,-460.0,0.00019726,2]
[374379810,1753283441109,-460.0,0.00019726,2]
[374379812,1753283441118,-460.0,0.00019726,2]
[374379814,1753283441127,-1762.47,0.00019726,2]
[374379816,1753283441137,-460.0,0.00019726,2]
[374379818,1753283441147,-460.0,0.00019726,2]
[374379820,1753283441163,-460.0,0.00019726,2]
[374379822,1753283441174,-460.0,0.00019726,2]
[374379824,1753283441184,-460.0,0.00019726,2]
[374379826,1753283441193,-460.0,0.00019726,2]
[374379828,1753283441203,-460.0,0.00019726,2]
[374379830,1753283441212,-159.46,0.00019726,2]
[374379832,1753283441220,-2363.56,0.00019726,2]
[374379834,1753283441230,-2072.7,0.00019726,2]
[374379836,1753283441245,-460.0,0.00019726,2]
[374379838,1753283441255,-460.0,0.00019726,2]
[374379840,1753283441265,-460.0,0.00019726,2]
[374379842,1753283441274,-460.0,0.00019726,2]
[374379844,1753283441283,-460.0,0.00019726,2]
[374379846,1753283441293,-460.0,0.00019726,2]
[374379848,1753283441303,-460.0,0.00019726,2]
[374379850,1753283441312,-1586.54,0.00019726,2]
[374379852,1753283441322,-1711.56,0.00019726,2]
[374379854,1753283441334,-460.0,0.00019726,2]
[374379856,1753283441344,-460.0,0.00019726,2]
[374379858,1753283441354,-460.0,0.00019726,2]
[374379860,1753283441363,-460.0,0.00019726,2]
[374379862,1753283441373,-460.0,0.00019726,2]
[374379864,1753283441383,-2071.11,0.00019726,2]
[374379866,1753283441392,-460.0,0.00019726,2]
[374379868,1753283441401,-460.0,0.00019726,2]
[374379870,1753283441415,-460.0,0.00019726,2]
[374379872,1753283441424,-564.07,0.00019726,2]
[374379874,1753283441433,-460.0,0.00019726,2]
[374379876,1753283441443,-460.0,0.00019726,2]
[374379878,1753283441452,-460.0,0.00019726,2]
[374379880,1753283441463,-891.31,0.00019726,2]
[374379882,1753283441473,-534.64,0.00019726,2]
[374379884,1753283441483,-3000.0,0.000199,2]
[374379886,1753283441492,-3000.0,0.0001991,2]
[374379888,1753283441501,-3000.0,0.0001992,2]
[374379890,1753283441510,-3000.0,0.0001993,2]
[374379892,1753283441519,-3000.0,0.0001994,2]
[374379894,1753283441529,-3000.0,0.0001995,2]
[374379896,1753283441538,-681.31785305,0.00019954,2]
[374379898,1753283441547,-3000.0,0.0001996,2]
[374379900,1753283441556,-4773.745301,0.0001997,2]
[374379902,1753283441565,-460.0,0.0002,2]
[374379904,1753283441575,-460.0,0.0002,2]
[374379906,1753283441584,-460.0,0.0002,2]
[374379908,1753283441594,-460.0,0.0002,2]
[374379910,1753283441603,-460.0,0.0002,2]
[374379912,1753283441613,-460.0,0.0002,2]
[374379914,1753283441622,-460.0,0.0002,2]
[374379916,1753283441632,-460.0,0.0002,2]
[374379918,1753283441641,-415.02,0.0002,2]
[374379920,1753283441650,-460.0,0.0002,2]
[374379922,1753283441662,-467.67,0.0002,2]
[374379925,1753283441672,-8042.37,0.0002,2]
[374379927,1753283441681,-460.0,0.0002,2]
[374379928,1753283441690,-460.0,0.0002,2]
[374379930,1753283441700,-460.0,0.0002,2]
[374379932,1753283441710,-460.0,0.0002,2]
[374379934,1753283441719,-460.0,0.0002,2]
[374379936,1753283441728,-460.0,0.0002,2]
[374379938,1753283441739,-460.0,0.0002,2]
[374379940,1753283441749,-460.0,0.0002,2]
[374379943,1753283441758,-460.0,0.0002,2]
[374379945,1753283441769,-1762.47,0.0002,2]
[374379946,1753283441778,-460.0,0.0002,2]
[374379949,1753283441788,-169.13,0.0002,2]
[374379950,1753283441798,-460.0,0.0002,2]
[374379951,1753283441807,-460.0,0.0002,2]
[374379952,1753283441817,-460.0,0.0002,2]
[374379953,1753283441827,-460.0,0.0002,2]
[374379954,1753283441836,-460.0,0.0002,2]
[374379955,1753283441846,-2363.56,0.0002,2]
[374379956,1753283441856,-2072.7,0.0002,2]
[374379957,1753283441865,-460.0,0.0002,2]
[374379958,1753283441875,-460.0,0.0002,2]
[374379959,1753283441885,-460.0,0.0002,2]
[374379960,1753283441894,-460.0,0.0002,2]
[374379961,1753283441907,-460.0,0.0002,2]
[374379977,1753283442043,-460.0,0.0002,2]
[374379979,1753283442053,-460.0,0.0002,2]
[374379981,1753283442063,-1586.54,0.0002,2]
[374379983,1753283442073,-1711.56,0.0002,2]
[374379985,1753283442082,-460.0,0.0002,2]
[374379987,1753283442094,-460.0,0.0002,2]
[374379989,1753283442103,-460.0,0.0002,2]
[374379991,1753283442113,-460.0,0.0002,2]
[374379993,1753283442122,-2071.11,0.0002,2]
[374379995,1753283442131,-460.0,0.0002,2]
[374379997,1753283442141,-460.0,0.0002,2]
[374379998,1753283442151,-460.0,0.0002,2]
[374380000,1753283442163,-564.07,0.0002,2]
[374380002,1753283442174,-460.0,0.0002,2]
[374380004,1753283442184,-460.0,0.0002,2]
[374380006,1753283442194,-460.0,0.0002,2]
[374380008,1753283442204,-891.31,0.0002,2]
[374380010,1753283442213,-624.01322793,0.00020013,2]
[374380012,1753283442223,-404.413517,0.00020187,2]
[374380014,1753283442232,-1122.75820574,0.00020223,2]
[374380016,1753283442242,-1000.0,0.00020223,2]
[374380018,1753283442251,-460.0,0.00020273,2]
[374380020,1753283442261,-460.0,0.00020273,2]
[374380022,1753283442270,-460.0,0.00020273,2]
[374380024,1753283442279,-460.0,0.00020273,2]
[374380026,1753283442289,-267.31435184,0.00020273,2]
[374380028,1753283442298,-460.0,0.00020273,2]
[374380030,1753283442307,-460.0,0.00020273,2]
[374380032,1753283442317,-460.0,0.00020273,2]
[374380033,1753283442326,-467.67,0.00020273,2]
[374380035,1753283442335,-8042.37,0.00020273,2]
[374380037,1753283442344,-460.0,0.00020273,2]
[374380039,1753283442354,-464.15,0.00020273,2]
[374380041,1753283442363,-460.0,0.00020273,2]
[374380043,1753283442372,-460.0,0.00020273,2]
[374380045,1753283442382,-460.0,0.00020273,2]
[374380047,1753283442391,-460.0,0.00020273,2]
[374380049,1753283442400,-460.0,0.00020273,2]
[374380051,1753283442414,-460.0,0.00020273,2]
[374380053,1753283442424,-360.0,0.00020273,2]
[374380055,1753283442433,-1762.47,0.00020273,2]
[374380057,1753283442443,-460.0,0.00020273,2]
[374380059,1753283442452,-460.0,0.00020273,2]
[374380061,1753283442462,-460.0,0.00020273,2]
[374380063,1753283442471,-460.0,0.00020273,2]
[374380065,1753283442481,-460.0,0.00020273,2]
[374380067,1753283442491,-460.0,0.00020273,2]
[374380069,1753283442500,-2363.56,0.00020273,2]
[374380071,1753283442509,-2072.7,0.00020273,2]
[374380073,1753283442519,-460.0,0.00020273,2]
[374380075,1753283442528,-460.0,0.00020273,2]
[374380077,1753283442537,-460.0,0.00020273,2]
[374380078,1753283442547,-460.0,0.00020273,2]
[374380080,1753283442556,-460.0,0.00020273,2]
[374380082,1753283442566,-460.0,0.00020273,2]
[374380084,1753283442575,-460.0,0.00020273,2]
[374380086,1753283442585,-1586.54,0.00020273,2]
[374380088,1753283442594,-1711.56,0.00020273,2]
[374380090,1753283442603,-460.0,0.00020273,2]
[374380092,1753283442612,-460.0,0.00020273,2]
[374380094,1753283442622,-460.0,0.00020273,2]
[374380096,1753283442631,-2071.11,0.00020273,2]
[374380098,1753283442640,-460.0,0.00020273,2]
[374380099,1753283442649,-460.0,0.00020273,2]
[374380101,1753283442666,-460.0,0.00020273,2]
[374380103,1753283442676,-564.07,0.00020273,2]
[374380105,1753283442687,-460.0,0.00020273,2]
[374380107,1753283442696,-460.0,0.00020273,2]
[374380109,1753283442706,-460.0,0.00020273,2]
[374380111,1753283442715,-891.31,0.00020273,2]
[374380113,1753283442724,-1290.34934213,0.00020324,2]
[374380115,1753283442734,-1272.62,0.00020438,3]
[374380117,1753283442743,-636.3,0.00020438,3]
[374380119,1753283442752,-318.16,0.00020438,3]
[374380121,1753283442761,-777.84,0.00020438,3]
[374380123,1753283442770,-388.92,0.00020438,3]
[374380125,1753283442779,-150.0,0.00020477,2]
[374380127,1753283442789,-460.0,0.00020547,2]
[374380129,1753283442798,-460.0,0.00020547,2]
[374380131,1753283442808,-460.0,0.00020547,2]
[374380133,1753283442817,-460.0,0.00020547,2]
[374380134,1753283442826,-460.0,0.00020547,2]
[374380137,1753283442835,-460.0,0.00020547,2]
[374380139,1753283442845,-467.67,0.00020547,2]
[374380140,1753283442854,-8042.37,0.00020547,2]
[374380142,1753283442863,-460.0,0.00020547,2]
[374380144,1753283442872,-460.0,0.00020547,2]
[374380146,1753283442881,-460.0,0.00020547,2]
[374380148,1753283442891,-460.0,0.00020547,2]
[374380150,1753283442900,-460.0,0.00020547,2]
[374380152,1753283442913,-460.0,0.00020547,2]
[374380154,1753283442922,-460.0,0.00020547,2]
[374380156,1753283442931,-1762.47,0.00020547,2]
[374380158,1753283442941,-460.0,0.00020547,2]
[374380160,1753283442951,-460.0,0.00020547,2]